[Event "*** Titled Tuesday 3|2 Blitz"]
[Site "Chess.com"]
[Date "2015.09.01"]
[Round "5"]
[White "AnastasiaProtopopova"]
[Black "fumeynoel"]
[Result "1-0"]
[WhiteElo "1785"]
[BlackElo "1590"]
[TimeControl "180+2"]
[EndTime "12:01:39 PDT"]
[Termination "AnastasiaProtopopova won on time"]

1. Nf3 {[%clk 0:03:01.9]} 1... d5 {[%clk 0:03:00.7]} 2. d4 {[%clk 0:03:02]} 2...
Nf6 {[%clk 0:03:01.8]} 3. c4 {[%clk 0:03:03.2]} 3... Bf5 {[%clk 0:03:01.7]} 4.
cxd5 {[%clk 0:02:59.6]} 4... Nxd5 {[%clk 0:02:59.9]} 5. Nc3 {[%clk 0:03:00.1]}
5... e6 {[%clk 0:02:52.6]} 6. e3 {[%clk 0:02:56.1]} 6... Bb4 {[%clk 0:02:49.6]}
7. Bd2 {[%clk 0:02:50.5]} 7... O-O {[%clk 0:02:44.9]} 8. Bc4 {[%clk 0:02:48.9]}
8... c6 {[%clk 0:02:43.3]} 9. O-O {[%clk 0:02:49]} 9... Be7 {[%clk 0:02:39.2]}
10. Qe2 {[%clk 0:02:47.7]} 10... Bg4 {[%clk 0:02:38.7]} 11. h3 {[%clk
0:02:47.1]} 11... Bh5 {[%clk 0:02:39.4]} 12. e4 {[%clk 0:02:47.5]} 12... Nf6
{[%clk 0:02:14.7]} 13. Be3 {[%clk 0:02:14.2]} 13... h6 {[%clk 0:02:01.2]} 14.
Rad1 {[%clk 0:02:13.4]} 14... Nbd7 {[%clk 0:01:56.9]} 15. e5 {[%clk 0:02:11.3]}
15... Nd5 {[%clk 0:01:52.2]} 16. Ne4 {[%clk 0:02:10.7]} 16... N7b6 {[%clk
0:01:40.6]} 17. Bd3 {[%clk 0:02:10.2]} 17... Na4 {[%clk 0:01:35.8]} 18. Ng3
{[%clk 0:02:02.6]} 18... Bxf3 {[%clk 0:01:30.4]} 19. gxf3 {[%clk 0:01:53.6]}
19... Nxe3 {[%clk 0:01:19.3]} 20. fxe3 {[%clk 0:01:53.6]} 20... Bh4 {[%clk
0:01:16.1]} 21. Ne4 {[%clk 0:01:43.2]} 21... f5 {[%clk 0:01:07]} 22. exf6 {[%clk
0:01:43]} 22... Bxf6 {[%clk 0:01:03.2]} 23. Qg2 {[%clk 0:01:41.6]} 23... Qb6
{[%clk 0:00:46.7]} 24. b3 {[%clk 0:01:41.5]} 24... Nb2 {[%clk 0:00:44]} 25. Qxb2
{[%clk 0:01:41.7]} 25... Qc7 {[%clk 0:00:37.9]} 26. Qg2 {[%clk 0:01:40]} 26...
Rad8 {[%clk 0:00:35.1]} 27. Kh1 {[%clk 0:01:30.5]} 27... Rd5 {[%clk 0:00:34.7]}
28. Rg1 {[%clk 0:01:25.9]} 28... Qf7 {[%clk 0:00:35.3]} 29. Qg6 {[%clk
0:01:17.1]} 29... Qxg6 {[%clk 0:00:33.8]} 30. Rxg6 {[%clk 0:01:17.7]} 30... Rh5
{[%clk 0:00:34.4]} 31. Nxf6+ {[%clk 0:01:13.4]} 31... Rxf6 {[%clk 0:00:33.5]}
32. Rxf6 {[%clk 0:01:14.4]} 32... gxf6 {[%clk 0:00:32.9]} 33. Kh2 {[%clk
0:01:15]} 33... f5 {[%clk 0:00:31.9]} 34. Bc4 {[%clk 0:01:09.1]} 34... Kf7
{[%clk 0:00:32.3]} 35. f4 {[%clk 0:00:58.2]} 35... Kf6 {[%clk 0:00:16.9]} 36.
Be2 {[%clk 0:00:58]} 36... Kg6 {[%clk 0:00:13.2]} 37. Rg1+ {[%clk 0:00:57.6]}
37... Rg5 {[%clk 0:00:14.4]} 38. fxg5 {[%clk 0:00:57.6]} 38... hxg5 {[%clk
0:00:12.6]} 39. h4 {[%clk 0:00:53.8]} 39... g4 {[%clk 0:00:13.2]} 40. Kg3 {[%clk
0:00:54.9]} 40... Kh5 {[%clk 0:00:12.3]} 41. Kf4 {[%clk 0:00:52.5]} 41... b6
{[%clk 0:00:11.7]} 42. e4 {[%clk 0:00:50.2]} 42... a6 {[%clk 0:00:08.3]} 43.
exf5 {[%clk 0:00:51.6]} 43... exf5 {[%clk 0:00:09]} 44. Kxf5 {[%clk 0:00:49.5]}
44... Kxh4 {[%clk 0:00:10]} 45. Bxg4 {[%clk 0:00:49.8]} 45... c5 {[%clk
0:00:07]} 46. Kf4 {[%clk 0:00:50.7]} 1-0

[Event "*** Titled Tuesday 3|2 Blitz"]
[Site "Chess.com"]
[Date "2015.09.01"]
[Round "5"]
[White "Fh2411"]
[Black "stepanosinovsky"]
[Result "0-1"]
[WhiteElo "2195"]
[BlackElo "2300"]
[TimeControl "180+2"]
[EndTime "12:01:42 PDT"]
[Termination "stepanosinovsky won by resignation"]

1. e4 {[%clk 0:03:01.9]} 1... Nc6 {[%clk 0:02:51.6]} 2. Nf3 {[%clk 0:02:57.9]}
2... e5 {[%clk 0:02:51.5]} 3. Bc4 {[%clk 0:02:57]} 3... Nf6 {[%clk 0:02:51.6]}
4. d3 {[%clk 0:02:56.3]} 4... Be7 {[%clk 0:02:51.9]} 5. O-O {[%clk 0:02:54.4]}
5... d5 {[%clk 0:02:52.3]} 6. exd5 {[%clk 0:02:51.7]} 6... Nxd5 {[%clk
0:02:54.2]} 7. Re1 {[%clk 0:02:46.8]} 7... Bg4 {[%clk 0:02:55.6]} 8. c3 {[%clk
0:02:42.9]} 8... O-O {[%clk 0:02:46]} 9. h3 {[%clk 0:02:37.1]} 9... Bh5 {[%clk
0:02:46.3]} 10. Bb3 {[%clk 0:02:33.4]} 10... Nb6 {[%clk 0:02:32.8]} 11. Qe2
{[%clk 0:02:25.4]} 11... Kh8 {[%clk 0:02:21.4]} 12. Nbd2 {[%clk 0:01:29.7]}
12... f5 {[%clk 0:02:13.2]} 13. Qf1 {[%clk 0:01:30.4]} 13... Bd6 {[%clk
0:01:51.6]} 14. Nh2 {[%clk 0:01:30]} 14... Qf6 {[%clk 0:01:27.7]} 15. Ndf3
{[%clk 0:01:27.1]} 15... h6 {[%clk 0:01:23]} 16. Be3 {[%clk 0:01:06.7]} 16...
Rae8 {[%clk 0:01:01.8]} 17. Bd1 {[%clk 0:00:57.6]} 17... Nd5 {[%clk 0:00:45.6]}
18. Kh1 {[%clk 0:00:39]} 18... g5 {[%clk 0:00:20.7]} 19. Ng1 {[%clk 0:00:21]}
19... Bg6 {[%clk 0:00:20]} 20. f3 {[%clk 0:00:18.8]} 20... h5 {[%clk 0:00:18.5]}
21. Qf2 {[%clk 0:00:13.5]} 21... Kh7 {[%clk 0:00:17.3]} 22. Qd2 {[%clk
0:00:14.4]} 22... Nf4 {[%clk 0:00:16.5]} 23. Bxf4 {[%clk 0:00:14.9]} 23... gxf4
{[%clk 0:00:17.1]} 24. Bc2 {[%clk 0:00:14.2]} 24... Rg8 {[%clk 0:00:17.4]} 25.
Ne2 {[%clk 0:00:13.3]} 25... Ne7 {[%clk 0:00:14.3]} 26. d4 {[%clk 0:00:14.4]}
26... Nd5 {[%clk 0:00:13.8]} 27. dxe5 {[%clk 0:00:15.5]} 27... Qxe5 {[%clk
0:00:10.7]} 28. Nd4 {[%clk 0:00:15]} 28... Ne3 {[%clk 0:00:11]} 29. Nf1 {[%clk
0:00:15.2]} 29... c5 {[%clk 0:00:10]} 30. Nxf5 {[%clk 0:00:11.1]} 30... Bxf5
{[%clk 0:00:09.7]} 31. Bxf5+ {[%clk 0:00:11.8]} 31... Qxf5 {[%clk 0:00:06.9]}
32. Qxd6 {[%clk 0:00:13.3]} 32... Re6 {[%clk 0:00:04.1]} 33. Qc7+ {[%clk
0:00:11.7]} 33... Rg7 {[%clk 0:00:04.9]} 34. Qc8 {[%clk 0:00:12]} 34... Reg6
{[%clk 0:00:02.8]} 35. Nxe3 {[%clk 0:00:11.6]} 35... Qxc8 {[%clk 0:00:03.3]} 36.
Nd5 {[%clk 0:00:12]} 36... Rxg2 {[%clk 0:00:03.8]} 37. Nxf4 {[%clk 0:00:13.9]}
37... R2g3 {[%clk 0:00:04.3]} 38. Kh2 {[%clk 0:00:14.6]} 38... Qf5 {[%clk
0:00:05.2]} 39. Re4 {[%clk 0:00:16]} 39... h4 {[%clk 0:00:06.1]} 40. Rae1 {[%clk
0:00:15.9]} 40... Rxf3 {[%clk 0:00:06.3]} 0-1

[Event "*** Titled Tuesday 3|2 Blitz"]
[Site "Chess.com"]
[Date "2015.09.01"]
[Round "5"]
[White "ItalianMachine"]
[Black "MFBerna"]
[Result "0-1"]
[WhiteElo "2195"]
[BlackElo "2141"]
[TimeControl "180+2"]
[EndTime "12:02:21 PDT"]
[Termination "MFBerna won by resignation"]

1. e4 {[%clk 0:02:57.3]} 1... e5 {[%clk 0:02:59.3]} 2. Nf3 {[%clk 0:02:58.1]}
2... Nc6 {[%clk 0:03:00.4]} 3. Bb5 {[%clk 0:02:58.4]} 3... Nf6 {[%clk
0:02:59.2]} 4. d3 {[%clk 0:02:58.6]} 4... d6 {[%clk 0:02:59.4]} 5. h3 {[%clk
0:02:56.7]} 5... Be7 {[%clk 0:03:00.4]} 6. O-O {[%clk 0:02:55.1]} 6... O-O
{[%clk 0:03:01.7]} 7. c3 {[%clk 0:02:55.2]} 7... Bd7 {[%clk 0:03:02.8]} 8. Ba4
{[%clk 0:02:50.9]} 8... Re8 {[%clk 0:03:02.9]} 9. Bc2 {[%clk 0:02:49.1]} 9... h6
{[%clk 0:03:02.9]} 10. Re1 {[%clk 0:02:48.9]} 10... Bf8 {[%clk 0:03:03.8]} 11.
d4 {[%clk 0:02:48.7]} 11... g6 {[%clk 0:03:02.5]} 12. Nbd2 {[%clk 0:02:42.3]}
12... Bg7 {[%clk 0:03:02]} 13. Nf1 {[%clk 0:02:41.8]} 13... Qe7 {[%clk
0:02:54.1]} 14. Ng3 {[%clk 0:02:37]} 14... Rad8 {[%clk 0:02:50.9]} 15. Be3
{[%clk 0:02:35.5]} 15... a6 {[%clk 0:02:45.3]} 16. Qd2 {[%clk 0:02:36.1]} 16...
Kh7 {[%clk 0:02:41.8]} 17. Rad1 {[%clk 0:02:37.2]} 17... Nb8 {[%clk 0:02:37.6]}
18. Nh2 {[%clk 0:02:10.8]} 18... c5 {[%clk 0:02:33.1]} 19. d5 {[%clk 0:02:08.7]}
19... b5 {[%clk 0:02:30.6]} 20. f4 {[%clk 0:02:08.9]} 20... exf4 {[%clk
0:02:13.7]} 21. Bxf4 {[%clk 0:02:08.9]} 21... Qf8 {[%clk 0:02:04.3]} 22. Nf3
{[%clk 0:02:05.4]} 22... Bc8 {[%clk 0:01:56.7]} 23. a4 {[%clk 0:01:56.1]} 23...
Nbd7 {[%clk 0:01:46.4]} 24. Rf1 {[%clk 0:01:37.3]} 24... Nb6 {[%clk 0:01:31.7]}
25. axb5 {[%clk 0:01:36.5]} 25... axb5 {[%clk 0:01:32]} 26. b3 {[%clk 0:01:38]}
26... Nfd7 {[%clk 0:01:24.2]} 27. Nh5 {[%clk 0:01:19.3]} 27... Bh8 {[%clk
0:01:10.1]} 28. Nh4 {[%clk 0:01:01.1]} 28... Ne5 {[%clk 0:00:59.3]} 29. Bxe5
{[%clk 0:00:58.2]} 29... Rxe5 {[%clk 0:00:48.4]} 30. Nf6+ {[%clk 0:00:58.3]}
30... Bxf6 {[%clk 0:00:46.2]} 31. Rxf6 {[%clk 0:01:00.2]} 31... Qe7 {[%clk
0:00:23.8]} 32. Rdf1 {[%clk 0:01:00.4]} 32... Kg7 {[%clk 0:00:12.8]} 33. Rxf7+
{[%clk 0:00:46.2]} 33... Qxf7 {[%clk 0:00:14.7]} 34. Rxf7+ {[%clk 0:00:46.9]}
34... Kxf7 {[%clk 0:00:16.6]} 35. Qxh6 {[%clk 0:00:47.4]} 35... Rg8 {[%clk
0:00:17.9]} 36. Nf3 {[%clk 0:00:48]} 36... Rh5 {[%clk 0:00:15.4]} 37. Qf4+
{[%clk 0:00:46.2]} 37... Ke7 {[%clk 0:00:14.7]} 38. e5 {[%clk 0:00:37.8]} 38...
Nxd5 {[%clk 0:00:12.1]} 39. exd6+ {[%clk 0:00:38.4]} 39... Kd8 {[%clk
0:00:10.1]} 40. Qf7 {[%clk 0:00:35.1]} 40... Re8 {[%clk 0:00:06.1]} 41. Qxd5
{[%clk 0:00:35.9]} 41... Rxd5 {[%clk 0:00:06.5]} 42. Bxg6 {[%clk 0:00:36.4]}
42... Rxd6 {[%clk 0:00:07.4]} 43. Bxe8 {[%clk 0:00:36.5]} 43... Kxe8 {[%clk
0:00:09.3]} 44. Kf2 {[%clk 0:00:37]} 44... Rd3 {[%clk 0:00:09.5]} 45. c4 {[%clk
0:00:36.3]} 45... Rxb3 {[%clk 0:00:10]} 46. cxb5 {[%clk 0:00:37]} 46... Rxb5
{[%clk 0:00:10.8]} 47. Ke3 {[%clk 0:00:38.3]} 47... Bb7 {[%clk 0:00:11.6]} 48.
Ne1 {[%clk 0:00:36.9]} 48... Rb1 {[%clk 0:00:10.3]} 49. Nd3 {[%clk 0:00:36.3]}
49... c4 {[%clk 0:00:09.2]} 50. Ne5 {[%clk 0:00:37]} 50... Bd5 {[%clk
0:00:07.2]} 51. Kd4 {[%clk 0:00:37.1]} 51... Rd1+ {[%clk 0:00:07.5]} 52. Kc3
{[%clk 0:00:37.2]} 52... Ke7 {[%clk 0:00:08.1]} 53. h4 {[%clk 0:00:35.1]} 53...
Ke6 {[%clk 0:00:09]} 54. Ng4 {[%clk 0:00:34.3]} 54... Rd3+ {[%clk 0:00:07.7]}
55. Kb2 {[%clk 0:00:33.8]} 55... Rg3 {[%clk 0:00:09.6]} 56. Nh6 {[%clk
0:00:31.8]} 0-1

[Event "*** Titled Tuesday 3|2 Blitz"]
[Site "Chess.com"]
[Date "2015.09.01"]
[Round "5"]
[White "Iball95"]
[Black "ChessTrener"]
[Result "1-0"]
[WhiteElo "2357"]
[BlackElo "2503"]
[TimeControl "180+2"]
[EndTime "12:02:22 PDT"]
[Termination "Iball95 won by resignation"]

1. e4 {[%clk 0:03:01.4]} 1... c5 {[%clk 0:02:58.7]} 2. Nf3 {[%clk 0:03:01.9]}
2... Nc6 {[%clk 0:02:59.2]} 3. d4 {[%clk 0:03:02.7]} 3... cxd4 {[%clk
0:03:00.5]} 4. Nxd4 {[%clk 0:03:04.6]} 4... g6 {[%clk 0:03:02]} 5. Nc3 {[%clk
0:03:04.8]} 5... Bg7 {[%clk 0:03:03.2]} 6. Be3 {[%clk 0:03:06.3]} 6... Nf6
{[%clk 0:03:04.8]} 7. f3 {[%clk 0:03:06.7]} 7... O-O {[%clk 0:03:05.8]} 8. g4
{[%clk 0:03:06.6]} 8... Qb6 {[%clk 0:03:04.9]} 9. Rb1 {[%clk 0:03:02.7]} 9...
Nxg4 {[%clk 0:03:04.4]} 10. fxg4 {[%clk 0:02:59.7]} 10... Bxd4 {[%clk
0:03:04.4]} 11. Nd5 {[%clk 0:03:00.7]} 11... Qa5+ {[%clk 0:03:03]} 12. b4 {[%clk
0:02:46.4]} 12... Qxa2 {[%clk 0:03:03.9]} 13. Bxd4 {[%clk 0:02:41.5]} 13... Nxd4
{[%clk 0:03:03.2]} 14. Nxe7+ {[%clk 0:02:42.3]} 14... Kg7 {[%clk 0:03:03.3]} 15.
Qxd4+ {[%clk 0:02:43.6]} 15... f6 {[%clk 0:03:04.7]} 16. Rb2 {[%clk 0:02:30.1]}
16... Qe6 {[%clk 0:03:03.6]} 17. Nd5 {[%clk 0:02:30.9]} 17... a5 {[%clk
0:03:04.7]} 18. Be2 {[%clk 0:02:22.5]} 18... axb4 {[%clk 0:03:05.1]} 19. Rxb4
{[%clk 0:02:21.5]} 19... Ra2 {[%clk 0:02:59.2]} 20. Ne3 {[%clk 0:02:00]} 20...
b5 {[%clk 0:02:50.8]} 21. O-O {[%clk 0:01:57.5]} 21... Bb7 {[%clk 0:02:51.4]}
22. Bf3 {[%clk 0:01:49.8]} 22... Bc6 {[%clk 0:02:51.6]} 23. h3 {[%clk
0:01:43.8]} 23... h5 {[%clk 0:02:42.7]} 24. Bg2 {[%clk 0:01:34.8]} 24... hxg4
{[%clk 0:02:30.3]} 25. hxg4 {[%clk 0:01:36.7]} 25... Kh6 {[%clk 0:02:29.8]} 26.
Rbb1 {[%clk 0:01:33.4]} 26... Ra4 {[%clk 0:02:29.1]} 27. Qd2 {[%clk 0:01:32.4]}
27... Kg7 {[%clk 0:02:28.5]} 28. Rb4 {[%clk 0:01:18.9]} 28... Ra3 {[%clk
0:02:18.2]} 29. Qf2 {[%clk 0:01:10.9]} 29... Qd6 {[%clk 0:02:09]} 30. Rb3 {[%clk
0:01:07.5]} 30... Ra4 {[%clk 0:02:09.6]} 31. Nd5 {[%clk 0:01:06.1]} 31... Bxd5
{[%clk 0:02:05.3]} 32. exd5 {[%clk 0:01:08]} 32... Rxg4 {[%clk 0:02:03.3]} 33.
Qf3 {[%clk 0:00:35.4]} 33... Rh4 {[%clk 0:01:58.8]} 34. Qg3 {[%clk 0:00:28.7]}
34... Qc5+ {[%clk 0:01:59.6]} 35. Re3 {[%clk 0:00:29.3]} 35... Rc4 {[%clk
0:01:52.6]} 36. Qf2 {[%clk 0:00:27.8]} 36... Rxc2 {[%clk 0:01:46.6]} 37. Re2
{[%clk 0:00:29.1]} 37... Qxf2+ {[%clk 0:01:43.4]} 38. Kxf2 {[%clk 0:00:31]}
38... Rxe2+ {[%clk 0:01:41.2]} 39. Kxe2 {[%clk 0:00:32.9]} 39... Ra8 {[%clk
0:01:42.7]} 40. Rb1 {[%clk 0:00:32.9]} 40... Ra2+ {[%clk 0:01:43]} 41. Kf3
{[%clk 0:00:34.1]} 41... Ra5 {[%clk 0:01:43.2]} 42. Bf1 {[%clk 0:00:32.9]} 42...
b4 {[%clk 0:01:43.2]} 43. Bc4 {[%clk 0:00:34.4]} 43... Rc5 {[%clk 0:01:44.2]}
44. Rxb4 {[%clk 0:00:35.1]} 44... f5 {[%clk 0:01:44.7]} 45. Ke3 {[%clk 0:00:36]}
45... Kf6 {[%clk 0:01:43.5]} 46. Kd4 {[%clk 0:00:37.5]} 46... Rc7 {[%clk
0:01:44.7]} 47. d6 {[%clk 0:00:37]} 47... Ra7 {[%clk 0:01:45.9]} 48. Kd5 {[%clk
0:00:38.1]} 48... g5 {[%clk 0:01:46.2]} 49. Rb8 {[%clk 0:00:36.6]} 49... g4
{[%clk 0:01:39.6]} 50. Bb5 {[%clk 0:00:35.7]} 50... g3 {[%clk 0:01:37.5]} 51.
Rg8 {[%clk 0:00:33.5]} 51... Ra5 {[%clk 0:01:36.4]} 52. Kc5 {[%clk 0:00:33]}
52... f4 {[%clk 0:01:36.7]} 53. Kb6 {[%clk 0:00:32.6]} 53... Ra1 {[%clk
0:01:09.4]} 54. Bxd7 {[%clk 0:00:33.3]} 54... Ke5 {[%clk 0:01:10.7]} 55. Rg6
{[%clk 0:00:32.2]} 55... Rd1 {[%clk 0:01:07.6]} 56. Re6+ {[%clk 0:00:29.5]}
56... Kd5 {[%clk 0:01:08.2]} 57. Rg6 {[%clk 0:00:30]} 57... Ke5 {[%clk
0:01:07.6]} 58. Kc7 {[%clk 0:00:28.2]} 58... g2 {[%clk 0:01:04.9]} 59. Rxg2
{[%clk 0:00:28]} 59... f3 {[%clk 0:01:06.4]} 60. Rg5+ {[%clk 0:00:23.9]} 60...
Ke4 {[%clk 0:01:06.4]} 61. Rf5 {[%clk 0:00:20.1]} 61... Ke3 {[%clk 0:01:06.1]}
62. Bb5 {[%clk 0:00:20.1]} 1-0

[Event "*** Titled Tuesday 3|2 Blitz"]
[Site "Chess.com"]
[Date "2015.09.01"]
[Round "5"]
[White "Bab3s"]
[Black "ArnaudovP"]
[Result "1/2-1/2"]
[WhiteElo "2136"]
[BlackElo "2331"]
[TimeControl "180+2"]
[EndTime "12:02:29 PDT"]
[Termination "Game drawn by repetition"]

1. e4 {[%clk 0:03:01.9]} 1... e5 {[%clk 0:02:56.9]} 2. Nf3 {[%clk 0:03:02.2]}
2... Nc6 {[%clk 0:02:57.8]} 3. Bb5 {[%clk 0:03:03.4]} 3... Bb4 {[%clk
0:02:57.7]} 4. O-O {[%clk 0:03:02.9]} 4... Nge7 {[%clk 0:02:57.7]} 5. c3 {[%clk
0:03:03.3]} 5... Ba5 {[%clk 0:02:57.9]} 6. d4 {[%clk 0:03:04]} 6... exd4 {[%clk
0:02:58.2]} 7. cxd4 {[%clk 0:03:04.7]} 7... d5 {[%clk 0:02:59.8]} 8. exd5 {[%clk
0:02:43.5]} 8... Qxd5 {[%clk 0:02:59.7]} 9. Nc3 {[%clk 0:02:29.8]} 9... Bxc3
{[%clk 0:03:00.3]} 10. Bxc6+ {[%clk 0:02:30.4]} 10... Nxc6 {[%clk 0:03:01.3]}
11. bxc3 {[%clk 0:02:32.3]} 11... O-O {[%clk 0:03:01.3]} 12. Re1 {[%clk
0:02:31.5]} 12... Bg4 {[%clk 0:03:01.7]} 13. a4 {[%clk 0:02:24.8]} 13... Rad8
{[%clk 0:03:01]} 14. Rb1 {[%clk 0:02:21.7]} 14... b6 {[%clk 0:03:01.4]} 15. Rb5
{[%clk 0:02:18.2]} 15... Qc4 {[%clk 0:03:00.4]} 16. Rg5 {[%clk 0:01:58.7]} 16...
Be6 {[%clk 0:02:51.7]} 17. Qd2 {[%clk 0:01:36.2]} 17... Ne7 {[%clk 0:02:39.1]}
18. Qf4 {[%clk 0:01:19.1]} 18... Nd5 {[%clk 0:02:38.4]} 19. Qe5 {[%clk
0:01:07.9]} 19... g6 {[%clk 0:02:37.3]} 20. Rg3 {[%clk 0:00:49.4]} 20... Rde8
{[%clk 0:02:35.3]} 21. Bh6 {[%clk 0:00:37.8]} 21... f6 {[%clk 0:02:36.2]} 22.
Qh5 {[%clk 0:00:37.2]} 22... Rf7 {[%clk 0:02:25]} 23. h3 {[%clk 0:00:08.9]}
23... Kh8 {[%clk 0:02:24.1]} 24. Qh4 {[%clk 0:00:09]} 24... Qxc3 {[%clk
0:02:20.4]} 25. Bd2 {[%clk 0:00:07.5]} 25... Qc2 {[%clk 0:02:20.4]} 26. Kh2
{[%clk 0:00:04.6]} 26... Qf5 {[%clk 0:02:19]} 27. Qh6 {[%clk 0:00:04.3]} 27...
Rg8 {[%clk 0:02:18.1]} 28. Nh4 {[%clk 0:00:04.6]} 28... Qc2 {[%clk 0:02:09.2]}
29. Rxe6 {[%clk 0:00:03.5]} 29... g5 {[%clk 0:02:09.8]} 30. Nf5 {[%clk
0:00:02.8]} 30... Qxf5 {[%clk 0:02:09.5]} 31. Re2 {[%clk 0:00:02.5]} 31... Qg6
{[%clk 0:02:04.2]} 32. Qxg6 {[%clk 0:00:03.1]} 32... Rxg6 {[%clk 0:02:05.5]} 33.
Rb3 {[%clk 0:00:04.2]} 33... Kg7 {[%clk 0:02:06]} 34. Re8 {[%clk 0:00:04.8]}
34... f5 {[%clk 0:02:06.5]} 35. Ra8 {[%clk 0:00:05.4]} 35... a5 {[%clk
0:02:05.4]} 36. Rd8 {[%clk 0:00:06.6]} 36... c6 {[%clk 0:02:04.8]} 37. Kg1
{[%clk 0:00:06.5]} 37... h6 {[%clk 0:02:06]} 38. Kf1 {[%clk 0:00:07.3]} 38...
Re6 {[%clk 0:02:06.9]} 39. Rb1 {[%clk 0:00:07.5]} 39... f4 {[%clk 0:02:07.5]}
40. Re1 {[%clk 0:00:07]} 40... Rxe1+ {[%clk 0:02:07.2]} 41. Bxe1 {[%clk
0:00:05.5]} 41... Re7 {[%clk 0:02:07.9]} 42. Rd6 {[%clk 0:00:05.8]} 42... Rc7
{[%clk 0:02:07.6]} 43. Bd2 {[%clk 0:00:06.5]} 43... h5 {[%clk 0:02:06.2]} 44. g3
{[%clk 0:00:06.2]} 44... fxg3 {[%clk 0:01:57.8]} 45. fxg3 {[%clk 0:00:06.5]}
45... g4 {[%clk 0:01:59.7]} 46. hxg4 {[%clk 0:00:07]} 46... hxg4 {[%clk
0:02:00.6]} 47. Ke2 {[%clk 0:00:08.1]} 47... Ne7 {[%clk 0:01:59.7]} 48. Kd3
{[%clk 0:00:07.5]} 48... Nf5 {[%clk 0:02:00.5]} 49. Re6 {[%clk 0:00:04.9]} 49...
Kf7 {[%clk 0:01:58.9]} 50. Re4 {[%clk 0:00:04.5]} 50... Rd7 {[%clk 0:01:58.7]}
51. Rxg4 {[%clk 0:00:04.1]} 51... c5 {[%clk 0:01:59.9]} 52. Rf4 {[%clk
0:00:04.6]} 52... Ke6 {[%clk 0:02:00]} 53. Kc4 {[%clk 0:00:04.4]} 53... Rxd4+
{[%clk 0:01:58.5]} 54. Rxd4 {[%clk 0:00:05]} 54... Nxd4 {[%clk 0:01:59.5]} 55.
Be3 {[%clk 0:00:05.5]} 55... Ke5 {[%clk 0:01:55.9]} 56. g4 {[%clk 0:00:04.3]}
56... Ke4 {[%clk 0:01:54.3]} 57. Bf2 {[%clk 0:00:02.9]} 57... Nf3 {[%clk
0:01:32.9]} 58. Bxc5 {[%clk 0:00:02.9]} 58... bxc5 {[%clk 0:01:32.3]} 59. Kxc5
{[%clk 0:00:04.8]} 59... Nd4 {[%clk 0:01:30.4]} 60. Kb6 {[%clk 0:00:04.7]} 60...
Nb3 {[%clk 0:01:31.1]} 61. Kb5 {[%clk 0:00:05.5]} 61... Kf4 {[%clk 0:01:24.3]}
62. Kc4 {[%clk 0:00:06.1]} 62... Nd2+ {[%clk 0:01:25]} 63. Kb5 {[%clk
0:00:06.8]} 63... Nb3 {[%clk 0:01:25.7]} 64. Kc4 {[%clk 0:00:07.6]} 64... Nc1
{[%clk 0:01:25.9]} 65. Kb5 {[%clk 0:00:08.1]} 65... Nb3 {[%clk 0:01:27]} 66. Kc4
{[%clk 0:00:09.1]} 1/2-1/2

[Event "*** Titled Tuesday 3|2 Blitz"]
[Site "Chess.com"]
[Date "2015.09.01"]
[Round "5"]
[White "myaccount88"]
[Black "xdb"]
[Result "0-1"]
[WhiteElo "2143"]
[BlackElo "2150"]
[TimeControl "180+2"]
[EndTime "12:02:40 PDT"]
[Termination "xdb won by resignation"]

1. e4 {[%clk 0:02:55.2]} 1... e5 {[%clk 0:02:59.5]} 2. Nf3 {[%clk 0:02:55.3]}
2... Nf6 {[%clk 0:03:00.6]} 3. d4 {[%clk 0:02:54.2]} 3... Nxe4 {[%clk
0:02:59.8]} 4. dxe5 {[%clk 0:02:53.5]} 4... d5 {[%clk 0:02:57.4]} 5. exd6 {[%clk
0:02:51.6]} 5... Bxd6 {[%clk 0:02:51.1]} 6. Bd3 {[%clk 0:02:45.3]} 6... Nc5
{[%clk 0:02:48.9]} 7. Be2 {[%clk 0:02:45.6]} 7... O-O {[%clk 0:02:49]} 8. O-O
{[%clk 0:02:45.9]} 8... Nc6 {[%clk 0:02:49]} 9. Nc3 {[%clk 0:02:45]} 9... Bg4
{[%clk 0:02:43.5]} 10. h3 {[%clk 0:02:40.7]} 10... Bh5 {[%clk 0:02:41.4]} 11.
Be3 {[%clk 0:02:30.8]} 11... Re8 {[%clk 0:02:34.8]} 12. Qd5 {[%clk 0:02:31]}
12... Bxf3 {[%clk 0:01:37.9]} 13. Qxf3 {[%clk 0:02:10.2]} 13... Ne5 {[%clk
0:01:36.8]} 14. Qd5 {[%clk 0:02:09.2]} 14... c6 {[%clk 0:01:31]} 15. Qd4 {[%clk
0:01:53.2]} 15... Qf6 {[%clk 0:01:17.9]} 16. Rad1 {[%clk 0:01:47.6]} 16... Rad8
{[%clk 0:01:17.9]} 17. f4 {[%clk 0:01:27.6]} 17... Ne6 {[%clk 0:00:53.1]} 18.
fxe5 {[%clk 0:00:53.6]} 18... Nxd4 {[%clk 0:00:53.3]} 19. Rxf6 {[%clk
0:00:40.7]} 19... Nxe2+ {[%clk 0:00:48.6]} 20. Nxe2 {[%clk 0:00:40.9]} 20...
gxf6 {[%clk 0:00:49.3]} 21. exd6 {[%clk 0:00:39]} 21... Rxe3 {[%clk 0:00:49.6]}
22. Nf4 {[%clk 0:00:37.1]} 22... Re4 {[%clk 0:00:38.7]} 23. Nh5 {[%clk
0:00:36.9]} 23... Re6 {[%clk 0:00:39.5]} 24. d7 {[%clk 0:00:34.9]} 24... Kf8
{[%clk 0:00:39.5]} 25. Rf1 {[%clk 0:00:28]} 25... Ke7 {[%clk 0:00:37.1]} 26. Ng7
{[%clk 0:00:26.8]} 26... Re5 {[%clk 0:00:33.7]} 27. Ne8 {[%clk 0:00:22.9]} 27...
Rxd7 {[%clk 0:00:24.2]} 28. Nxf6 {[%clk 0:00:23.4]} 28... Rd2 {[%clk 0:00:24.8]}
29. Ng8+ {[%clk 0:00:15.9]} 29... Kf8 {[%clk 0:00:22.3]} 30. Nh6 {[%clk
0:00:16.7]} 30... Ree2 {[%clk 0:00:23.4]} 31. Rxf7+ {[%clk 0:00:16.4]} 31... Ke8
{[%clk 0:00:25]} 32. Rg7 {[%clk 0:00:16.1]} 32... Rxc2 {[%clk 0:00:24.6]} 33.
Nf5 {[%clk 0:00:17.3]} 33... Rxb2 {[%clk 0:00:21.9]} 34. Nd6+ {[%clk 0:00:17.2]}
34... Kf8 {[%clk 0:00:21.2]} 35. Rg3 {[%clk 0:00:16.7]} 35... b5 {[%clk
0:00:20.2]} 36. Nf5 {[%clk 0:00:13.2]} 36... Rxa2 {[%clk 0:00:20.1]} 37. Nd4
{[%clk 0:00:14.3]} 37... Re1+ {[%clk 0:00:19]} 38. Kh2 {[%clk 0:00:13.6]} 38...
Rc1 {[%clk 0:00:17.3]} 39. Ne6+ {[%clk 0:00:12.3]} 39... Ke7 {[%clk 0:00:17.6]}
40. Ng5 {[%clk 0:00:12.2]} 40... h6 {[%clk 0:00:17.8]} 41. Ne4 {[%clk
0:00:10.7]} 41... Rcc2 {[%clk 0:00:17.6]} 42. Rg6 {[%clk 0:00:10.5]} 42... c5
{[%clk 0:00:17.1]} 43. h4 {[%clk 0:00:10.4]} 43... h5 {[%clk 0:00:17.6]} 44. Nd6
{[%clk 0:00:10.5]} 44... b4 {[%clk 0:00:17.9]} 45. Nf5+ {[%clk 0:00:11]} 45...
Kf7 {[%clk 0:00:18.4]} 46. Rg5 {[%clk 0:00:12]} 46... b3 {[%clk 0:00:17.4]} 47.
Nd6+ {[%clk 0:00:10.4]} 47... Ke6 {[%clk 0:00:17.8]} 48. Ne4 {[%clk 0:00:11.2]}
48... Rxg2+ {[%clk 0:00:13]} 49. Rxg2 {[%clk 0:00:11.5]} 49... Rxg2+ {[%clk
0:00:14.9]} 50. Kxg2 {[%clk 0:00:13.2]} 50... Kd5 {[%clk 0:00:12.4]} 51. Kf3
{[%clk 0:00:13.2]} 51... b2 {[%clk 0:00:10.3]} 52. Ke3 {[%clk 0:00:14.5]} 52...
Kc4 {[%clk 0:00:10.1]} 53. Nd2+ {[%clk 0:00:09.4]} 53... Kc3 {[%clk 0:00:10.2]}
54. Ne4+ {[%clk 0:00:10]} 54... Kc2 {[%clk 0:00:10.8]} 55. Nxc5 {[%clk
0:00:09.9]} 55... b1=Q {[%clk 0:00:11.1]} 0-1